bitfinex/quotes_BTCUSD_20241021
["timestamp","ask_amount","ask_price","bid_price","bid_amount"]
[1729483681361,0.146117,68910.0,68909.0,0.1847]
[1729483681572,0.145117,68910.0,68909.0,0.1827]
[1729483682016,0.146117,68910.0,68909.0,0.1847]
[1729483682237,0.146117,68910.0,68909.0,0.1827]
[1729483682238,0.145117,68910.0,68909.0,0.1827]
[1729483682453,0.146117,68910.0,68909.0,0.1847]
[1729483682664,0.147117,68910.0,68909.0,0.1867]
[1729483682919,0.146117,68910.0,68909.0,0.1847]
[1729483683590,0.147117,68910.0,68909.0,0.1867]
[1729483684016,0.146117,68910.0,68909.0,0.1847]
[1729483684949,0.147117,68910.0,68909.0,0.1867]
[1729483685159,0.146117,68910.0,68909.0,0.1847]
[1729483685580,0.147117,68910.0,68909.0,0.1867]
[1729483685791,0.145117,68910.0,68909.0,0.1827]
[1729483686226,0.147117,68910.0,68909.0,0.1867]
[1729483686653,0.146117,68910.0,68909.0,0.1847]
[1729483687088,0.147117,68910.0,68909.0,0.1867]
[1729483687521,0.147945,68910.0,68909.0,0.1847]
[1729483687732,0.146945,68910.0,68909.0,0.1847]
[1729483687947,0.147945,68910.0,68909.0,0.1867]
[1729483688159,0.147945,68910.0,68909.0,0.1847]
[1729483688580,0.148945,68910.0,68909.0,0.1867]
[1729483688792,0.147945,68910.0,68909.0,0.1847]
[1729483689210,0.148945,68910.0,68909.0,0.1867]
[1729483689653,0.148945,68910.0,68909.0,0.0891]
[1729483690809,0.146945,68910.0,68909.0,0.0871]
[1729483691028,0.146945,68910.0,68909.0,0.0891]
[1729483691235,0.147945,68910.0,68909.0,0.0891]
[1729483691446,0.146945,68910.0,68909.0,0.0871]
[1729483691650,0.146945,68910.0,68909.0,0.0891]
[1729483692075,0.145945,68910.0,68909.0,0.0871]
[1729483692284,0.146945,68910.0,68909.0,0.0891]
[1729483692705,0.145945,68910.0,68909.0,0.0871]
[1729483693134,0.145945,68910.0,68909.0,0.0891]
[1729483693755,0.145945,68910.0,68909.0,0.0871]
[1729483694179,0.145945,68910.0,68909.0,0.0891]
[1729483694610,0.145945,68910.0,68909.0,0.0871]
[1729483694828,0.145945,68910.0,68909.0,0.0881]
[1729483695248,0.145945,68910.0,68909.0,0.008]
[1729483695913,0.145945,68910.0,68909.0,0.001]
[1729483696152,0.145945,68910.0,68909.0,0.002]
[1729483696818,0.145127,68905.0,68904.0,0.0841]
[1729483698328,0.145127,68905.0,68904.0,0.0861]
[1729483698525,0.145127,68905.0,68904.0,0.0841]
[1729483699938,0.145127,68905.0,68904.0,0.0881]
[1729483700906,0.145127,68905.0,68904.0,0.0841]
[1729483701160,0.145127,68905.0,68904.0,0.0861]
[1729483701647,0.145127,68905.0,68904.0,0.0841]
[1729483701884,0.145127,68905.0,68904.0,0.0861]
[1729483702117,0.145127,68905.0,68904.0,0.0881]
[1729483702836,0.145127,68905.0,68904.0,0.0861]
[1729483703327,0.145127,68905.0,68904.0,0.0881]
[1729483703606,0.145127,68905.0,68904.0,0.0791]
[1729483703843,0.145127,68905.0,68904.0,0.0861]
[1729483704108,0.145127,68905.0,68904.0,0.0881]
[1729483705264,0.145127,68905.0,68904.0,0.0861]
[1729483705481,0.145127,68905.0,68904.0,0.0881]
[1729483705711,0.145127,68905.0,68904.0,0.0989409]
[1729483705947,0.145127,68905.0,68904.0,0.0969409]
[1729483706476,0.145127,68905.0,68904.0,0.0989409]
[1729483707676,0.145127,68905.0,68904.0,0.1943409]
[1729483707893,0.145127,68905.0,68904.0,0.1993409]
[1729483708415,0.145127,68905.0,68904.0,0.1973409]
[1729483708687,0.145127,68905.0,68904.0,0.1993409]
[1729483708939,0.145127,68905.0,68904.0,0.2038799]
[1729483709172,0.145127,68905.0,68904.0,0.20340746]
[1729483709402,0.146127,68905.0,68904.0,0.20340746]
[1729483709643,0.147127,68905.0,68904.0,0.20840746]
[1729483710924,0.146127,68905.0,68904.0,0.18802756]
[1729483711155,0.147127,68905.0,68904.0,0.21041379]
[1729483711390,0.146127,68905.0,68904.0,0.20841379]
[1729483711829,0.147127,68905.0,68904.0,0.21641379]
[1729483712261,0.147127,68905.0,68904.0,0.20941379]
[1729483712524,0.146127,68905.0,68904.0,0.20941379]
[1729483712753,0.147127,68905.0,68904.0,0.21441379]
[1729483712988,0.146127,68905.0,68904.0,0.20941379]
[1729483713222,0.147127,68905.0,68904.0,0.21441379]
[1729483714097,0.146127,68905.0,68904.0,0.20941379]
[1729483714309,0.147127,68905.0,68904.0,0.21441379]
[1729483714940,0.147127,68905.0,68904.0,0.20641379]
[1729483714941,0.146127,68905.0,68904.0,0.20641379]
[1729483715342,0.147127,68905.0,68904.0,0.21141379]
[1729483715823,0.146127,68905.0,68904.0,0.20641379]
[1729483716024,0.147127,68905.0,68904.0,0.21141379]
[1729483716301,0.146127,68905.0,68904.0,0.20641379]
[1729483716700,0.145127,68905.0,68904.0,0.20141379]
[1729483716933,0.145127,68905.0,68904.0,0.20541379]
[1729483717108,0.145127,68905.0,68904.0,0.20941379]
[1729483717313,0.145127,68905.0,68904.0,0.20541379]
[1729483717746,0.145127,68905.0,68904.0,0.20741379]
[1729483718163,0.145127,68905.0,68904.0,0.20342122]
[1729483718616,0.145127,68905.0,68904.0,0.09749366]
[1729483718850,0.15873511,68905.0,68904.0,0.01385464]
[1729483719077,0.145127,68905.0,68904.0,0.01385464]
[1729483719516,0.145127,68905.0,68904.0,0.01085464]
[1729483719722,0.145127,68905.0,68904.0,0.002]
[1729483719951,0.145127,68905.0,68904.0,0.01385632]
[1729483720217,0.145127,68905.0,68904.0,0.01185632]
[1729483720447,0.147127,68905.0,68904.0,0.001]
[1729483722359,0.01361013,68906.0,68903.0,0.005]
[1729483722582,0.145129,68904.0,68903.0,0.005]
[1729483722816,0.145129,68904.0,68903.0,0.01585714]
[1729483724381,0.145129,68904.0,68903.0,0.01085714]
[1729483724382,0.15873913,68904.0,68903.0,0.01085714]
[1729483725246,0.145133,68902.0,68901.0,0.005]
[1729483725707,0.145133,68902.0,68901.0,0.01585873]
[1729483727115,0.145133,68902.0,68901.0,0.02085873]
[1729483728821,0.145133,68902.0,68901.0,0.01]
[1729483729054,0.145133,68902.0,68901.0,0.020858]
[1729483730695,0.145133,68902.0,68901.0,0.018858]
[1729483730890,0.145133,68902.0,68901.0,0.020858]
[1729483731837,0.145133,68902.0,68901.0,0.017858]
[1729483732349,0.145133,68902.0,68901.0,0.01]
[1729483732589,0.145133,68902.0,68901.0,0.02085735]
[1729483737393,0.145133,68902.0,68901.0,0.01]
[1729483737861,0.145961,68902.0,68901.0,0.01]
[1729483739298,0.145961,68902.0,68901.0,0.02085552]
[1729483739520,0.145961,68902.0,68901.0,0.02085536]
[1729483739995,0.145961,68902.0,68901.0,0.01]
[1729483740226,0.145961,68902.0,68901.0,0.008]
[1729483740724,0.145961,68902.0,68901.0,0.02085393]
[1729483741763,0.145961,68902.0,68901.0,0.02085386]
[1729483742269,0.145961,68902.0,68901.0,0.005]
[1729483742519,0.145961,68902.0,68901.0,0.01885409]
[1729483742760,0.145961,68902.0,68901.0,0.01785409]
[1729483742999,0.145961,68902.0,68901.0,0.01]
[1729483743267,0.145961,68902.0,68901.0,0.02238144]
[1729483744481,0.145961,68902.0,68901.0,0.01152756]
[1729483744730,0.145961,68902.0,68901.0,0.02238216]
[1729483746068,0.145961,68902.0,68901.0,0.02038216]
[1729483746291,0.145961,68902.0,68901.0,0.01738317]
[1729483746509,0.145961,68902.0,68901.0,0.00852756]
[1729483746727,0.145961,68902.0,68901.0,0.02138323]
[1729483746959,0.145961,68902.0,68901.0,0.01938323]
[1729483747171,0.145961,68902.0,68901.0,0.02038323]
[1729483747817,0.145961,68902.0,68901.0,0.01938323]
[1729483748264,0.145961,68902.0,68901.0,0.01738323]
[1729483748686,0.145961,68902.0,68901.0,0.00652756]
[1729483748894,0.145961,68902.0,68901.0,0.01238501]
[1729483749104,0.15957016,68902.0,68901.0,0.00152756]
[1729483749313,0.145135,68901.0,68900.0,0.006656]
[1729483749531,0.145135,68901.0,68900.0,0.01751381]
[1729483751494,0.146135,68901.0,68900.0,0.01751381]
[1729483751909,0.147135,68901.0,68900.0,0.01751381]
[1729483752358,0.147135,68901.0,68900.0,0.006656]
[1729483752976,0.146135,68901.0,68900.0,0.02837162]
[1729483753181,0.145135,68901.0,68900.0,0.02837162]
[1729483754229,0.146135,68901.0,68900.0,0.03337162]
[1729483754619,0.145135,68901.0,68900.0,0.02837162]
[1729483755533,0.146135,68901.0,68900.0,0.03337162]
[1729483756187,0.147135,68901.0,68900.0,0.03837162]
[1729483756400,0.146135,68901.0,68900.0,0.03337162]
[1729483756614,0.146135,68901.0,68900.0,0.11107162]
[1729483756834,0.146135,68901.0,68900.0,0.12107162]
[1729483757087,0.146135,68901.0,68900.0,0.11759918]
[1729483757322,0.147135,68901.0,68900.0,0.12259918]
[1729483757532,0.146135,68901.0,68900.0,0.11759918]
[1729483757747,0.147135,68901.0,68900.0,0.12259918]
[1729483758386,0.146135,68901.0,68900.0,0.11759918]
[1729483758806,0.147135,68901.0,68900.0,0.12259918]
[1729483759011,0.145135,68901.0,68900.0,0.11259918]
[1729483759451,0.145135,68901.0,68900.0,0.11659918]
[1729483759663,0.145135,68901.0,68900.0,0.11659869]
[1729483759872,0.145135,68901.0,68900.0,0.11959869]
[1729483760872,0.145135,68901.0,68900.0,0.11659869]
[1729483761691,0.145135,68901.0,68900.0,0.10174073]
[1729483761897,0.145135,68901.0,68900.0,0.09874073]
[1729483762100,0.145135,68901.0,68900.0,0.01951317]
[1729483762522,0.145963,68901.0,68900.0,0.01951317]
[1729483762976,0.145963,68901.0,68900.0,0.006656]
[1729483763199,0.145963,68901.0,68900.0,0.0175091]
[1729483768642,0.146963,68901.0,68900.0,0.0175091]
[1729483769604,0.147963,68901.0,68900.0,0.0175091]
[1729483770975,0.147963,68901.0,68900.0,0.0125091]
[1729483771206,0.147963,68901.0,68900.0,0.0175091]
[1729483775845,0.147963,68901.0,68900.0,0.0125091]
[1729483776047,0.147963,68901.0,68900.0,0.0175091]
[1729483777448,0.147963,68901.0,68900.0,0.01750848]
[1729483780835,0.147963,68901.0,68900.0,0.01250848]
[1729483781057,0.147963,68901.0,68900.0,0.006656]
[1729483781275,0.147963,68901.0,68900.0,0.0175093]
[1729483784477,0.147963,68901.0,68900.0,0.006656]
[1729483784687,0.147963,68901.0,68900.0,0.01751148]
[1729483784895,0.147963,68901.0,68900.0,0.01751147]
[1729483788134,0.147963,68901.0,68900.0,0.006656]
[1729483788339,0.147963,68901.0,68900.0,0.01751406]
[1729483791291,0.147963,68901.0,68900.0,0.01251406]
[1729483791504,0.147963,68901.0,68900.0,0.006656]
[1729483791721,0.147963,68901.0,68900.0,0.01751468]
[1729483801295,0.16158019,68901.0,68900.0,0.006656]
[1729483801518,0.16158019,68901.0,68900.0,0.01751554]
[1729483804365,0.16158019,68901.0,68900.0,0.01251554]
[1729483804595,0.16158019,68901.0,68900.0,0.01751554]
[1729483805256,0.16158019,68901.0,68900.0,0.01751611]
[1729483806192,0.147963,68901.0,68900.0,0.01751611]
[1729483808372,0.147963,68901.0,68900.0,0.01751775]
[1729483810655,0.147963,68901.0,68900.0,0.006656]
[1729483810869,0.147963,68901.0,68900.0,0.01751756]
[1729483815411,0.147963,68901.0,68900.0,0.006656]
[1729483816281,0.147963,68901.0,68900.0,0.02838004]
[1729483818930,0.147963,68901.0,68900.0,0.02338004]
[1729483819152,0.147963,68901.0,68900.0,0.01251795]
[1729483821829,0.147963,68901.0,68900.0,0.01751795]
[1729483822048,0.147963,68901.0,68900.0,0.006656]
[1729483829387,0.15082823,68901.0,68900.0,0.001656]
[1729483830740,0.21612307,68901.0,68900.0,0.001656]
[1729483830960,0.15082823,68901.0,68900.0,0.001656]
[1729483831429,0.19435609,68901.0,68900.0,0.001656]
[1729483831665,0.15082823,68901.0,68900.0,0.001656]
[1729483843385,0.39638738,68901.0,68900.0,0.001656]
[1729483843638,0.39352215,68901.0,68900.0,0.001656]
[1729483847211,0.48432981,68901.0,68900.0,0.001656]
[1729483847468,0.51528038,68901.0,68900.0,0.001656]
[1729483847708,0.145137,68900.0,68899.0,0.00136537]
[1729483847939,0.52488673,68900.0,68899.0,0.00136537]
[1729483848170,0.52203161,68900.0,68899.0,0.00136537]
[1729483848425,0.52203161,68900.0,68891.0,0.001656]
[1729483848426,0.235754,68892.0,68891.0,0.001656]
[1729483848640,0.38757838,68892.0,68891.0,0.001656]
[1729483848885,0.49350209,68892.0,68891.0,0.001656]
[1729483849407,0.40648149,68892.0,68891.0,0.001656]
[1729483849640,0.47169941,68892.0,68891.0,0.001656]
[1729483849891,0.44993107,68892.0,68891.0,0.001656]
[1729483850623,0.38471315,68892.0,68891.0,0.001656]
[1729483850840,0.39671315,68892.0,68891.0,0.001656]
[1729483851064,0.38471315,68892.0,68891.0,0.001656]
[1729483851294,0.44017937,68892.0,68891.0,0.001656]
[1729483851522,0.47494771,68892.0,68891.0,0.001656]
[1729483851764,0.42817937,68892.0,68891.0,0.001656]
[1729483852004,0.44017937,68892.0,68891.0,0.001656]
[1729483852251,0.56021607,68892.0,68891.0,0.001656]
[1729483852457,0.53851819,68892.0,68891.0,0.001656]
[1729483852710,0.50574985,68892.0,68891.0,0.001656]
[1729483852926,0.50574985,68892.0,68881.0,0.001642]
[1729483852927,0.192,68886.0,68881.0,0.001642]
[1729483853167,0.145175,68882.0,68881.0,0.001642]
[1729483853422,0.29699938,68882.0,68881.0,0.001642]
[1729483854831,0.15104023,68882.0,68881.0,0.082142]
[1729483855046,0.148175,68882.0,68881.0,0.082142]
[1729483856076,0.151175,68882.0,68881.0,0.082142]
[1729483856566,0.148175,68882.0,68881.0,0.082142]
[1729483856798,0.152175,68882.0,68881.0,0.082142]
[1729483857044,0.148175,68882.0,68881.0,0.082142]
[1729483857544,0.149175,68882.0,68881.0,0.082142]
[1729483858021,0.153175,68882.0,68881.0,0.082142]
[1729483858245,0.145175,68882.0,68881.0,0.082142]
[1729483858751,0.145175,68882.0,68881.0,0.085142]
[1729483859192,0.145175,68882.0,68881.0,0.087142]
[1729483859923,0.145175,68882.0,68881.0,0.084142]
[1729483860143,0.150175,68882.0,68881.0,0.084142]
[1729483860363,0.14804023,68882.0,68881.0,0.003642]
[1729483860589,0.145175,68882.0,68881.0,0.001642]
[1729483860808,0.151175,68882.0,68881.0,0.001642]
[1729483861501,0.39663877,68882.0,68881.0,0.001642]
[1729483861742,0.40363877,68882.0,68881.0,0.001642]
[1729483861984,0.40863877,68882.0,68881.0,0.001642]
[1729483862238,0.29913415,68882.0,68881.0,0.001642]
[1729483862438,0.30199938,68882.0,68881.0,0.001642]
[1729483862666,0.30999938,68882.0,68881.0,0.001642]
[1729483862884,0.30713415,68882.0,68881.0,0.001642]
[1729483863389,0.30213415,68882.0,68881.0,0.001642]
[1729483863590,0.31399938,68882.0,68881.0,0.001642]
[1729483863815,0.30213415,68882.0,68881.0,0.001642]
[1729483864062,0.30499938,68882.0,68881.0,0.001642]
[1729483864275,0.31699938,68882.0,68881.0,0.001642]
[1729483864580,0.30613415,68882.0,68881.0,0.001642]
[1729483864767,0.39066653,68882.0,68881.0,0.001642]
[1729483865018,0.3878013,68882.0,68881.0,0.001642]
[1729483865242,0.3768013,68882.0,68881.0,0.001642]
[1729483865721,0.31713415,68882.0,68881.0,0.001642]
[1729483866144,0.30613415,68882.0,68881.0,0.001642]
[1729483866360,0.29413415,68882.0,68881.0,0.001642]
[1729483866600,0.29699938,68882.0,68881.0,0.001642]
[1729483866812,0.30899938,68882.0,68881.0,0.001642]
[1729483867048,0.29413415,68882.0,68881.0,0.001642]
[1729483867281,0.30999938,68882.0,68881.0,0.001642]
[1729483867723,0.32099938,68882.0,68881.0,0.001642]
[1729483867950,0.31813415,68882.0,68881.0,0.001642]
[1729483868178,0.30713415,68882.0,68881.0,0.001642]
[1729483868620,0.31913415,68882.0,68881.0,0.001642]
[1729483868846,0.64307817,68882.0,68881.0,1e-06]
[1729483869072,0.150177,68881.0,68880.0,1e-06]
[1729483869291,0.40200138,68881.0,68880.0,1e-06]
[1729483869505,0.39913615,68881.0,68880.0,1e-06]
[1729483870158,0.40113615,68881.0,68880.0,1e-06]
[1729483870370,0.48136594,68881.0,68880.0,1e-06]
[1729483870823,0.47936594,68881.0,68880.0,1e-06]
[1729483871046,0.49293261,68881.0,68880.0,1e-06]
[1729483871495,0.50393261,68881.0,68880.0,1e-06]
[1729483872624,0.640701,68881.0,68880.0,1e-06]
[1729483874841,0.62713433,68881.0,68880.0,1e-06]
[1729483875037,0.64070808,68881.0,68880.0,1e-06]
[1729483876000,1.21967808,68881.0,68880.0,1e-06]
[1729483876247,1.39386182,68881.0,68880.0,1e-06]
[1729483876471,0.245211,68865.0,68864.0,0.21563652]
[1729483876690,0.41060913,68865.0,68864.0,0.21563652]
[1729483876907,0.41060913,68865.0,68857.0,0.21563652]
[1729483876908,0.245213,68864.0,68857.0,0.30963652]
[1729483877135,0.41061113,68864.0,68857.0,0.094]
[1729483877371,0.4077459,68864.0,68857.0,0.094]
[1729483878243,0.40775713,68864.0,68857.0,0.094]
[1729483878718,0.40775713,68864.0,68856.0,0.0805]
[1729483878719,0.40775272,68864.0,68856.0,0.0805]
[1729483879159,0.42775272,68864.0,68856.0,0.0805]
[1729483879384,0.41875272,68864.0,68856.0,0.0805]
[1729483880339,0.42975272,68864.0,68856.0,0.0805]
[1729483881714,0.41617215,68864.0,68856.0,0.0805]
[1729483881953,0.53130293,68864.0,68853.0,0.005]
[1729483882179,0.50930293,68864.0,68853.0,0.005]
[1729483882376,0.52230293,68864.0,68853.0,0.005]
[1729483882627,0.53430293,68864.0,68853.0,0.005]
[1729483883073,0.52230293,68864.0,68853.0,0.005]
[1729483883289,0.52030293,68864.0,68853.0,0.005]
[1729483883750,0.52030293,68864.0,68851.0,0.0779]
[1729483884428,0.52330293,68864.0,68851.0,0.0779]
[1729483884649,0.52330293,68864.0,68851.0,0.0829]
[1729483884887,0.53730293,68864.0,68851.0,0.0829]
[1729483885110,0.43574466,68864.0,68851.0,0.0829]
[1729483885373,0.42173911,68864.0,68851.0,0.0829]
[1729483885824,0.43573911,68864.0,68851.0,0.0829]
[1729483886271,0.42173911,68864.0,68851.0,0.0829]
[1729483886492,0.43573911,68864.0,68851.0,0.0829]
[1729483888155,0.43280457,68864.0,68851.0,0.0829]
[1729483889092,0.4328048,68864.0,68851.0,0.0779]
[1729483889306,0.43280658,68864.0,68851.0,0.0829]
[1729483890951,0.43280658,68864.0,68852.0,0.005]
[1729483892051,0.43780658,68864.0,68851.0,0.0779]
[1729483892516,0.42423761,68864.0,68851.0,0.0779]
[1729483892739,0.43780912,68864.0,68851.0,0.0779]
[1729483894537,0.145239,68852.0,68851.0,0.0779]
[1729483894768,0.29419815,68852.0,68851.0,0.0779]
[1729483894995,0.29706338,68852.0,68851.0,0.0779]
[1729483895905,0.30206338,68852.0,68851.0,0.0779]
[1729483896118,0.30706338,68852.0,68851.0,0.0779]
[1729483896554,0.32064592,68852.0,68851.0,0.0779]
[1729483896768,0.31778069,68852.0,68851.0,0.0779]
[1729483899677,0.30419815,68852.0,68851.0,0.0779]
[1729483899900,0.32065546,68852.0,68851.0,0.0779]
[1729483900091,0.31779023,68852.0,68851.0,0.0779]
[1729483901897,0.31779023,68852.0,68851.0,0.0728]
[1729483903063,0.317797,68852.0,68851.0,0.0728]
[1729483903525,0.317797,68852.0,68851.0,0.1712]
[1729483903967,0.317797,68852.0,68851.0,0.0728]
[1729483905523,0.317797,68852.0,68849.0,0.005]
[1729483905524,0.145243,68850.0,68849.0,0.005]
[1729483905744,0.29706738,68850.0,68849.0,0.005]
[1729483905963,0.31066623,68850.0,68849.0,0.005]
[1729483906192,0.307801,68850.0,68849.0,0.005]
[1729483906623,0.310801,68850.0,68849.0,0.005]
[1729483907072,0.313801,68850.0,68849.0,0.005]
[1729483907724,0.168558,68850.0,68849.0,0.005]
[1729483907971,0.31666623,68850.0,68849.0,0.005829]
[1729483908181,0.313801,68850.0,68849.0,0.005829]
[1729483910439,0.30020215,68850.0,68849.0,0.005829]
[1729483910683,0.30306738,68850.0,68849.0,0.005829]
[1729483910913,0.31668607,68850.0,68849.0,0.005829]
[1729483911135,0.31382084,68850.0,68849.0,0.005829]
[1729483912261,0.31382084,68850.0,68849.0,0.000829]
[1729483912478,0.31382084,68850.0,68849.0,0.005829]
[1729483914268,0.31382084,68850.0,68849.0,0.000829]
[1729483914755,0.31382313,68850.0,68849.0,0.000829]
[1729483917410,0.30020215,68850.0,68849.0,0.000829]
[1729483917621,0.31668824,68850.0,68849.0,0.000829]
[1729483917843,0.31382301,68850.0,68849.0,0.000829]
[1729483918079,0.16186386,68850.0,68849.0,0.094329]
[1729483918299,0.152243,68850.0,68849.0,0.179729]
[1729483918534,0.149243,68850.0,68849.0,0.179729]
[1729483918752,0.154243,68850.0,68849.0,0.179729]
[1729483918971,0.009,68850.0,68849.0,0.18625656]
[1729483919189,0.004,68850.0,68849.0,0.18625656]
[1729483919622,0.14524,68852.0,68850.0,0.1739]
[1729483919845,0.145241,68851.0,68850.0,0.17542756]
[1729483920497,0.145241,68851.0,68850.0,0.18042756]
[1729483922369,0.146241,68851.0,68850.0,0.18042756]
[1729483924362,0.147241,68851.0,68850.0,0.18042756]
[1729483926707,0.002,68851.0,68850.0,0.18542756]
[1729483927176,0.002,68851.0,68850.0,0.18996975]
[1729483927441,0.002,68851.0,68850.0,0.23345326]
[1729483928354,0.002,68851.0,68850.0,0.18542756]
[1729483928628,0.002,68851.0,68850.0,0.58285497]
[1729483928868,0.21563652,68859.0,68858.0,0.18302756]
[1729483929114,0.21563652,68859.0,68857.0,0.005]
[1729483929115,0.145204,68869.0,68863.0,0.18302756]
[1729483929338,0.290383,68875.0,68863.0,0.18302756]
[1729483929561,0.290383,68875.0,68863.0,0.47720171]
[1729483930039,0.290383,68875.0,68863.0,0.51020171]
[1729483930040,0.145191,68875.0,68863.0,0.51020171]
[1729483930488,0.145192,68874.0,68863.0,0.51020171]
[1729483930709,0.002658,68864.0,68863.0,0.51020171]
[1729483930937,0.002658,68864.0,68863.0,0.51520171]
[1729483931195,0.001658,68864.0,68863.0,0.51520171]
[1729483931417,0.003658,68864.0,68863.0,0.52120171]
[1729483931875,0.002658,68864.0,68863.0,0.51520171]
[1729483932094,0.003658,68864.0,68863.0,0.52720171]
[1729483932339,0.003658,68864.0,68863.0,0.38198671]
[1729483932802,0.002658,68864.0,68863.0,0.38198671]
[1729483933023,0.002658,68864.0,68863.0,0.38098671]
[1729483933727,0.001658,68864.0,68863.0,0.36998671]
[1729483934171,0.002658,68864.0,68863.0,0.37998671]
[1729483934384,0.003658,68864.0,68863.0,0.38598671]
[1729483934634,0.001658,68864.0,68863.0,0.36998671]
[1729483935084,0.002658,68864.0,68863.0,0.37698671]
[1729483935952,0.002658,68864.0,68863.0,0.38498671]
[1729483935953,0.003658,68864.0,68863.0,0.38498671]
[1729483936609,0.003658,68864.0,68863.0,0.53020171]
[1729483940556,0.003658,68864.0,68863.0,0.38498671]
[1729483940775,0.003658,68864.0,68863.0,0.53020171]
[1729483940973,0.003658,68864.0,68863.0,0.38498671]
[1729483943406,0.003658,68864.0,68863.0,0.53020171]
[1729483943641,0.003658,68864.0,68863.0,0.38498671]
[1729483944735,0.003658,68864.0,68863.0,0.52520171]
[1729483945395,0.003658,68864.0,68863.0,0.53020171]
[1729483945622,0.003658,68864.0,68863.0,0.63020171]
[1729483945872,0.003658,68864.0,68863.0,0.63220171]
[1729483946349,0.002658,68864.0,68863.0,0.66745486]
[1729483946570,0.21563652,68878.0,68877.0,0.19471356]
[1729483946797,0.21563652,68878.0,68877.0,0.52337271]
[1729483947446,0.001656,68881.0,68880.0,0.24380756]
[1729483947741,0.001656,68881.0,68880.0,0.41576671]
[1729483947958,0.001656,68881.0,68880.0,0.51096671]
[1729483948651,0.001656,68881.0,68880.0,0.52096671]
[1729483949376,0.001656,68881.0,68880.0,0.52796671]
[1729483949608,0.001656,68881.0,68880.0,0.53596671]
[1729483949834,0.001656,68881.0,68880.0,0.62796671]
[1729483950049,0.001656,68881.0,68880.0,0.62296671]
[1729483950265,0.001656,68881.0,68880.0,0.62996671]
[1729483950498,0.001656,68881.0,68880.0,0.62296671]
[1729483950950,0.001656,68881.0,68880.0,0.63696671]
[1729483951172,0.001656,68881.0,68880.0,0.62296671]
[1729483951388,0.001656,68881.0,68880.0,0.62796671]
[1729483951662,0.001656,68881.0,68880.0,0.64196671]
[1729483951888,0.001656,68881.0,68880.0,0.63696671]
[1729483952362,0.002656,68881.0,68880.0,0.65096671]
[1729483953961,0.002656,68881.0,68880.0,0.64896671]
[1729483954189,0.002656,68881.0,68880.0,0.65096671]
[1729483954461,0.002656,68881.0,68880.0,0.64896671]
[1729483954678,0.002656,68881.0,68880.0,0.65096671]
[1729483956824,0.002656,68881.0,68880.0,0.64896671]
[1729483957261,0.002656,68881.0,68880.0,0.65096671]
[1729483957492,0.002656,68881.0,68880.0,0.64896671]
[1729483957719,0.002656,68881.0,68880.0,0.65096671]
[1729483959801,0.002656,68881.0,68880.0,0.70905071]
[1729483960270,0.002656,68881.0,68880.0,0.70705071]
[1729483960761,0.002656,68881.0,68880.0,0.70905071]
[1729483960983,0.002656,68881.0,68880.0,0.69505071]
[1729483961214,0.001656,68881.0,68880.0,0.69505071]
[1729483961445,0.002656,68881.0,68880.0,0.70905071]
[1729483962362,0.002656,68881.0,68880.0,0.69505071]
[1729483962829,0.003656,68881.0,68880.0,0.70905071]
[1729483963779,0.002656,68881.0,68880.0,0.69505071]
[1729483964009,0.001656,68881.0,68880.0,0.69505071]
[1729483964242,0.003656,68881.0,68880.0,0.70905071]
[1729483964680,0.002656,68881.0,68880.0,0.69505071]
[1729483964903,0.003656,68881.0,68880.0,0.70905071]
[1729483965117,0.003656,68881.0,68880.0,0.68605071]
[1729483965602,0.002656,68881.0,68880.0,0.67205071]
[1729483965829,0.003656,68881.0,68880.0,0.68605071]
[1729483969720,0.003656,68881.0,68880.0,0.72915694]
[1729483970173,0.003656,68881.0,68880.0,0.74647839]
[1729483970402,0.003656,68881.0,68880.0,0.70337216]
[1729483970647,0.003656,68881.0,68880.0,0.74657261]
[1729483970897,0.003656,68881.0,68880.0,0.74657255]
[1729483971138,0.002656,68881.0,68880.0,0.73257255]
[1729483971358,0.003656,68881.0,68880.0,0.70337216]
[1729483971817,0.002656,68881.0,68880.0,0.68937216]
[1729483972339,0.002656,68881.0,68880.0,0.76821771]
[1729483972571,0.001656,68881.0,68880.0,0.68937216]
[1729483972803,0.001656,68881.0,68880.0,0.76821769]
[1729483973025,0.001656,68881.0,68880.0,0.70337216]
[1729483973263,0.001656,68881.0,68880.0,0.70338716]
[1729483973485,0.001656,68881.0,68880.0,0.67538716]
[1729483973937,0.001656,68881.0,68880.0,0.68938716]
[1729483974378,0.001656,68881.0,68880.0,0.78890944]
[1729483975068,0.001656,68881.0,68880.0,0.77490944]
[1729483975279,0.001656,68881.0,68880.0,0.77492166]
[1729483975501,0.001656,68881.0,68880.0,0.77592166]
[1729483975936,0.001656,68881.0,68880.0,0.78992166]
[1729483976161,0.001656,68881.0,68880.0,0.78792166]
[1729483976382,0.001656,68881.0,68880.0,0.78992166]
[1729483976857,0.001656,68881.0,68880.0,0.77258521]
[1729483977087,0.001656,68881.0,68880.0,0.78996299]
[1729483979419,0.001656,68881.0,68880.0,0.80083021]
[1729483980120,0.001656,68881.0,68880.0,0.71429571]
[1729483980357,0.001656,68881.0,68880.0,0.75954917]
[1729483981245,0.001656,68881.0,68880.0,0.86776529]
[1729483982119,0.001656,68881.0,68880.0,0.75954917]
[1729483982376,0.001656,68881.0,68880.0,0.86776529]
[1729483982584,0.001656,68881.0,68880.0,0.85037409]
[1729483982798,0.001656,68881.0,68880.0,0.8503738]
[1729483983013,0.001656,68881.0,68880.0,0.86776453]
[1729483984297,0.001656,68881.0,68880.0,0.86785486]
[1729483985468,0.001656,68881.0,68880.0,0.75954841]
[1729483989481,0.001656,68881.0,68880.0,0.73128847]
[1729483989697,0.001656,68881.0,68880.0,0.72928847]
[1729483989913,0.001656,68881.0,68880.0,0.75954576]
[1729483990349,0.001656,68881.0,68880.0,0.88968919]
[1729483991234,0.001656,68881.0,68880.0,0.75954576]
[1729483993177,0.001656,68881.0,68880.0,0.74867805]
[1729483995240,0.001656,68881.0,68880.0,0.77167805]
[1729483995459,0.001656,68881.0,68880.0,0.96384296]